[Event "Early-Titled-Tuesday-Blitz-May-28-2024"]
[Site "Chess.com"]
[Date "2024.05.28"]
[Round "6"]
[White "DrCeltic"]
[Black "Redbandit87"]
[Result "1-0"]
[WhiteElo "2583"]
[BlackElo "2409"]
[TimeControl "180+1"]
[EndTime "9:06:56 PDT"]
[Termination "DrCeltic won by resignation"]

1. e4 {[%clk 0:03:00.9]} 1... e5 {[%clk 0:02:59.4]} 2. Nf3 {[%clk 0:03:00.5]}
2... Nc6 {[%clk 0:02:59.8]} 3. Bb5 {[%clk 0:03:00.9]} 3... Bc5 {[%clk
0:02:59.1]} 4. d3 {[%clk 0:03:00.5]} 4... Qf6 {[%clk 0:02:45.5]} 5. O-O {[%clk
0:02:58.4]} 5... h6 {[%clk 0:02:45]} 6. Be3 {[%clk 0:02:58.3]} 6... Bb6 {[%clk
0:02:44.9]} 7. Nc3 {[%clk 0:02:58.3]} 7... Nge7 {[%clk 0:02:44.7]} 8. a4 {[%clk
0:02:57.1]} 8... a6 {[%clk 0:02:35.2]} 9. a5 {[%clk 0:02:54.9]} 9... Bxe3 {[%clk
0:02:19.4]} 10. Bxc6 {[%clk 0:02:53.7]} 10... Ba7 {[%clk 0:01:59.3]} 11. Ba4
{[%clk 0:02:43]} 11... O-O {[%clk 0:01:59.2]} 12. Nd2 {[%clk 0:02:34.4]} 12...
d6 {[%clk 0:01:55.2]} 13. Qf3 {[%clk 0:02:29.2]} 13... Qg5 {[%clk 0:01:45.3]}
14. Nc4 {[%clk 0:02:24.6]} 14... h5 {[%clk 0:01:37.1]} 15. Qg3 {[%clk
0:02:21.2]} 15... Qh6 {[%clk 0:01:34]} 16. h4 {[%clk 0:02:08.9]} 16... Ng6
{[%clk 0:01:25.2]} 17. Nd5 {[%clk 0:01:56.6]} 17... Bg4 {[%clk 0:01:14.3]} 18.
Nxc7 {[%clk 0:01:48.9]} 18... Nf4 {[%clk 0:01:13]} 19. Kh1 {[%clk 0:01:31.7]}
19... Rac8 {[%clk 0:00:59]} 20. Nd5 {[%clk 0:01:28.6]} 20... Nxd5 {[%clk
0:00:59.1]} 21. exd5 {[%clk 0:01:29.5]} 21... f5 {[%clk 0:00:55.9]} 22. f4
{[%clk 0:01:09.5]} 22... e4 {[%clk 0:00:52.6]} 23. Bd7 {[%clk 0:00:55.8]} 23...
Rc7 {[%clk 0:00:44.4]} 24. Be6+ {[%clk 0:00:55.5]} 24... Kh7 {[%clk 0:00:41.9]}
25. Nxd6 {[%clk 0:00:53.2]} 25... Rxc2 {[%clk 0:00:40.8]} 26. dxe4 {[%clk
0:00:50.5]} 26... fxe4 {[%clk 0:00:35.7]} 27. Nxe4 {[%clk 0:00:44.3]} 27... Bxe6
{[%clk 0:00:20.3]} 28. dxe6 {[%clk 0:00:38.2]} 28... Bd4 {[%clk 0:00:19.6]} 29.
Ng5+ {[%clk 0:00:32.3]} 29... Kh8 {[%clk 0:00:19.5]} 30. e7 {[%clk 0:00:30.8]}
30... Qf6 {[%clk 0:00:14.6]} 31. Qd3 {[%clk 0:00:25.1]} 31... g6 {[%clk
0:00:05]} 32. exf8=Q+ {[%clk 0:00:23.9]} 32... Qxf8 {[%clk 0:00:05.9]} 33. Qxc2
{[%clk 0:00:21.2]} 1-0

[Event "Early-Titled-Tuesday-Blitz-May-28-2024"]
[Site "Chess.com"]
[Date "2024.05.28"]
[Round "6"]
[White "Aguiar94"]
[Black "eltenedor"]
[Result "0-1"]
[WhiteElo "2688"]
[BlackElo "2188"]
[TimeControl "180+1"]
[EndTime "9:06:57 PDT"]
[Termination "eltenedor won by checkmate"]

1. e4 {[%clk 0:03:00.9]} 1... b6 {[%clk 0:02:41.3]} 2. Ne2 {[%clk 0:03:00.4]}
2... Bb7 {[%clk 0:02:40.6]} 3. Nbc3 {[%clk 0:03:00.7]} 3... g6 {[%clk
0:02:40.3]} 4. d4 {[%clk 0:02:59.9]} 4... Bg7 {[%clk 0:02:40.4]} 5. Be3 {[%clk
0:02:58.4]} 5... d6 {[%clk 0:02:40.4]} 6. h4 {[%clk 0:02:57.7]} 6... Nf6 {[%clk
0:02:39.6]} 7. Ng3 {[%clk 0:02:55.9]} 7... h5 {[%clk 0:02:38.4]} 8. f3 {[%clk
0:02:54.2]} 8... c5 {[%clk 0:02:36.2]} 9. Bb5+ {[%clk 0:02:49.7]} 9... Bc6
{[%clk 0:02:27.1]} 10. dxc5 {[%clk 0:02:38.8]} 10... Bxb5 {[%clk 0:02:09.8]} 11.
Nxb5 {[%clk 0:02:39.7]} 11... bxc5 {[%clk 0:02:08.3]} 12. c3 {[%clk 0:02:37.8]}
12... Nc6 {[%clk 0:02:02.6]} 13. Na3 {[%clk 0:02:30]} 13... Ne5 {[%clk
0:01:57.6]} 14. O-O {[%clk 0:02:27.4]} 14... O-O {[%clk 0:01:49.2]} 15. Bg5
{[%clk 0:02:25.7]} 15... Nh7 {[%clk 0:01:42.1]} 16. Be3 {[%clk 0:02:19]} 16...
e6 {[%clk 0:01:38.5]} 17. Rf2 {[%clk 0:02:17.7]} 17... Qxh4 {[%clk 0:01:37.5]}
18. Nf1 {[%clk 0:02:14]} 18... Qe7 {[%clk 0:01:18.4]} 19. Rd2 {[%clk 0:02:13.8]}
19... Rad8 {[%clk 0:01:17.1]} 20. b3 {[%clk 0:01:59.1]} 20... f5 {[%clk
0:01:07.7]} 21. exf5 {[%clk 0:01:47.9]} 21... Rxf5 {[%clk 0:01:04.3]} 22. c4
{[%clk 0:01:48.4]} 22... Rdf8 {[%clk 0:00:37.6]} 23. Rxd6 {[%clk 0:01:42.5]}
23... Nxf3+ {[%clk 0:00:37.1]} 24. gxf3 {[%clk 0:01:41.9]} 24... Bxa1 {[%clk
0:00:34.6]} 25. Rd7 {[%clk 0:01:42.5]} 25... Qf6 {[%clk 0:00:30.3]} 26. Bh6
{[%clk 0:01:36.2]} 26... Rxf3 {[%clk 0:00:20.9]} 27. Bxf8 {[%clk 0:01:28.2]}
27... Qg5+ {[%clk 0:00:18.8]} 28. Kh1 {[%clk 0:01:27.7]} 28... Rf2 {[%clk
0:00:08.4]} 29. Rg7+ {[%clk 0:00:31]} 29... Bxg7 {[%clk 0:00:07.6]} 30. Ng3
{[%clk 0:00:22.2]} 30... Qh4+ {[%clk 0:00:05.5]} 31. Kg1 {[%clk 0:00:21.9]}
31... Qh2# {[%clk 0:00:05.1]} 0-1

[Event "Early-Titled-Tuesday-Blitz-May-28-2024"]
[Site "Chess.com"]
[Date "2024.05.28"]
[Round "6"]
[White "Lennis93"]
[Black "Chopper1905"]
[Result "0-1"]
[WhiteElo "2766"]
[BlackElo "2962"]
[TimeControl "180+1"]
[EndTime "9:06:59 PDT"]
[Termination "Chopper1905 won on time"]

1. d4 {[%clk 0:03:00.9]} 1... Nf6 {[%clk 0:02:59.5]} 2. Nf3 {[%clk 0:03:01.2]}
2... e6 {[%clk 0:02:59.8]} 3. c4 {[%clk 0:03:01.8]} 3... b6 {[%clk 0:03:00.2]}
4. g3 {[%clk 0:03:01.7]} 4... Ba6 {[%clk 0:03:00.6]} 5. Qc2 {[%clk 0:02:59]}
5... c5 {[%clk 0:02:58.4]} 6. d5 {[%clk 0:02:59]} 6... exd5 {[%clk 0:02:58.6]}
7. cxd5 {[%clk 0:02:59.9]} 7... Bb7 {[%clk 0:02:59]} 8. Bg5 {[%clk 0:02:43.4]}
8... Bxd5 {[%clk 0:02:43.4]} 9. Nc3 {[%clk 0:02:39]} 9... Be6 {[%clk 0:02:31.7]}
10. e4 {[%clk 0:02:36.2]} 10... Be7 {[%clk 0:02:25.5]} 11. e5 {[%clk 0:02:36]}
11... Nd5 {[%clk 0:02:24]} 12. Ne4 {[%clk 0:02:25.5]} 12... O-O {[%clk
0:02:18.7]} 13. a3 {[%clk 0:02:07.1]} 13... Nc6 {[%clk 0:02:18.1]} 14. h4 {[%clk
0:01:50.6]} 14... Bg4 {[%clk 0:02:09.5]} 15. Bg2 {[%clk 0:01:17]} 15... Bxf3
{[%clk 0:02:01.6]} 16. Bxf3 {[%clk 0:01:17.9]} 16... Nxe5 {[%clk 0:02:01.7]} 17.
Be2 {[%clk 0:01:13.2]} 17... Nc6 {[%clk 0:01:55.5]} 18. O-O-O {[%clk 0:00:58.9]}
18... Nd4 {[%clk 0:01:54.8]} 19. Rxd4 {[%clk 0:00:58.6]} 19... cxd4 {[%clk
0:01:54.7]} 20. Kb1 {[%clk 0:00:58.9]} 20... Rc8 {[%clk 0:01:37.8]} 21. Qd3
{[%clk 0:00:58.5]} 21... h6 {[%clk 0:01:34.6]} 22. Qxd4 {[%clk 0:00:52.4]} 22...
Nf6 {[%clk 0:01:03.2]} 23. Bd3 {[%clk 0:00:47]} 23... d5 {[%clk 0:01:02.5]} 24.
Nc3 {[%clk 0:00:41.9]} 24... Re8 {[%clk 0:00:59.2]} 25. Bb5 {[%clk 0:00:38.3]}
25... Bc5 {[%clk 0:00:52.7]} 26. Qf4 {[%clk 0:00:26.1]} 26... Re6 {[%clk
0:00:51.5]} 27. Bxh6 {[%clk 0:00:13.8]} 27... gxh6 {[%clk 0:00:49.6]} 28. Qxh6
{[%clk 0:00:10.7]} 28... Bf8 {[%clk 0:00:43.2]} 29. Qg5+ {[%clk 0:00:09.7]}
29... Bg7 {[%clk 0:00:43.9]} 30. h5 {[%clk 0:00:08.9]} 30... Ne4 {[%clk
0:00:44.5]} 31. Qf5 {[%clk 0:00:02.8]} 31... Rxc3 {[%clk 0:00:41.9]} 32. h6
{[%clk 0:00:01.1]} 32... Rxh6 {[%clk 0:00:32.4]} 33. Rd1 {[%clk 0:00:01.3]}
33... Rf6 {[%clk 0:00:27.1]} 0-1

[Event "Early-Titled-Tuesday-Blitz-May-28-2024"]
[Site "Chess.com"]
[Date "2024.05.28"]
[Round "6"]
[White "Galileo22"]
[Black "David_ATM"]
[Result "1-0"]
[WhiteElo "2623"]
[BlackElo "2447"]
[TimeControl "180+1"]
[EndTime "9:07:05 PDT"]
[Termination "Galileo22 won by resignation"]

1. e4 {[%clk 0:03:00.9]} 1... e5 {[%clk 0:03:00.3]} 2. Nf3 {[%clk 0:03:00.7]}
2... Nc6 {[%clk 0:03:01]} 3. c3 {[%clk 0:02:59]} 3... Nf6 {[%clk 0:03:00.8]} 4.
Qa4 {[%clk 0:02:57.7]} 4... d6 {[%clk 0:02:48.3]} 5. d4 {[%clk 0:02:50.1]} 5...
exd4 {[%clk 0:02:47]} 6. cxd4 {[%clk 0:02:43.4]} 6... Bd7 {[%clk 0:02:47.1]} 7.
Nc3 {[%clk 0:02:32]} 7... Be7 {[%clk 0:02:42.3]} 8. Qc2 {[%clk 0:02:25.9]} 8...
O-O {[%clk 0:02:41.1]} 9. Be3 {[%clk 0:02:25.6]} 9... Re8 {[%clk 0:02:39.5]} 10.
a3 {[%clk 0:02:18.7]} 10... Bf8 {[%clk 0:02:31.7]} 11. Bd3 {[%clk 0:02:17.4]}
11... h6 {[%clk 0:02:22.3]} 12. h3 {[%clk 0:02:15.8]} 12... Kh8 {[%clk
0:02:10.5]} 13. Rd1 {[%clk 0:02:14.6]} 13... Ne7 {[%clk 0:02:07]} 14. Bc4 {[%clk
0:02:10.3]} 14... Be6 {[%clk 0:02:05.3]} 15. d5 {[%clk 0:01:48.9]} 15... Bd7
{[%clk 0:02:03.5]} 16. e5 {[%clk 0:01:48.8]} 16... Nfg8 {[%clk 0:01:49.5]} 17.
e6 {[%clk 0:01:40.5]} 17... fxe6 {[%clk 0:01:46.4]} 18. dxe6 {[%clk 0:01:41.4]}
18... Bc6 {[%clk 0:01:33.6]} 19. Ne5 {[%clk 0:01:35.9]} 19... g6 {[%clk
0:01:09.2]} 20. Nf7+ {[%clk 0:01:32.6]} 20... Kh7 {[%clk 0:01:09.5]} 21. Nxd8
{[%clk 0:01:28.7]} 21... Raxd8 {[%clk 0:01:10.4]} 22. O-O {[%clk 0:01:28.3]}
22... Bg7 {[%clk 0:01:05.9]} 23. Bd4 {[%clk 0:01:24.6]} 23... Nf6 {[%clk
0:01:05.5]} 24. Rfe1 {[%clk 0:01:19.9]} 24... Nf5 {[%clk 0:01:05.6]} 25. Bxf6
{[%clk 0:01:19.5]} 25... Bxf6 {[%clk 0:01:06]} 26. Bd3 {[%clk 0:01:16.8]} 26...
Ne7 {[%clk 0:01:04.5]} 27. Ne4 {[%clk 0:01:13.5]} 27... Bg7 {[%clk 0:01:04.7]}
28. Nc3 {[%clk 0:01:08.9]} 28... Rf8 {[%clk 0:01:05.1]} 29. b4 {[%clk
0:01:03.4]} 29... a6 {[%clk 0:01:04.8]} 30. Bf1 {[%clk 0:00:46]} 30... Rf4
{[%clk 0:01:02.5]} 31. Ne2 {[%clk 0:00:43.7]} 31... Rf6 {[%clk 0:01:02.3]} 32.
Nd4 {[%clk 0:00:43.1]} 32... Rdf8 {[%clk 0:01:02.7]} 33. Nxc6 {[%clk 0:00:42.1]}
33... bxc6 {[%clk 0:01:03.6]} 34. Bxa6 {[%clk 0:00:39]} 34... Ra8 {[%clk
0:00:59.8]} 35. b5 {[%clk 0:00:35.5]} 35... cxb5 {[%clk 0:00:59.5]} 36. Bxb5
{[%clk 0:00:36.2]} 36... Rxa3 {[%clk 0:00:58.9]} 37. Qxc7 {[%clk 0:00:35]} 37...
Bf8 {[%clk 0:00:42]} 38. Rxd6 {[%clk 0:00:34.2]} 38... Ra2 {[%clk 0:00:42.5]}
39. Rd7 {[%clk 0:00:31.6]} 39... Rfxf2 {[%clk 0:00:35.6]} 40. Rxe7+ {[%clk
0:00:31.1]} 40... Kg8 {[%clk 0:00:36.5]} 41. Bc6 {[%clk 0:00:28.5]} 41... Rac2
{[%clk 0:00:34.3]} 42. Rf7 {[%clk 0:00:26.3]} 1-0

[Event "Early-Titled-Tuesday-Blitz-May-28-2024"]
[Site "Chess.com"]
[Date "2024.05.28"]
[Round "6"]
[White "chessburger_tv"]
[Black "Mihajlovskij"]
[Result "1-0"]
[WhiteElo "2384"]
[BlackElo "2250"]
[TimeControl "180+1"]
[EndTime "9:07:06 PDT"]
[Termination "chessburger_tv won by checkmate"]

1. d4 {[%clk 0:02:53.2]} 1... Nf6 {[%clk 0:02:58.3]} 2. Nc3 {[%clk 0:02:53.6]}
2... d5 {[%clk 0:02:53.3]} 3. e4 {[%clk 0:02:54.1]} 3... dxe4 {[%clk 0:02:51.9]}
4. f3 {[%clk 0:02:54.5]} 4... exf3 {[%clk 0:02:49.3]} 5. Nxf3 {[%clk 0:02:55.4]}
5... g6 {[%clk 0:02:44.5]} 6. Bc4 {[%clk 0:02:55]} 6... Bg7 {[%clk 0:02:44]} 7.
O-O {[%clk 0:02:55.4]} 7... O-O {[%clk 0:02:42.2]} 8. Qe1 {[%clk 0:02:56]} 8...
e6 {[%clk 0:02:41.4]} 9. Qh4 {[%clk 0:02:56.2]} 9... Nbd7 {[%clk 0:02:36]} 10.
Bg5 {[%clk 0:02:56.1]} 10... c5 {[%clk 0:02:28.9]} 11. d5 {[%clk 0:02:51.7]}
11... Nb6 {[%clk 0:02:22.1]} 12. Ne5 {[%clk 0:02:43.6]} 12... exd5 {[%clk
0:02:16]} 13. Rxf6 {[%clk 0:02:18.6]} 13... dxc4 {[%clk 0:02:07.7]} 14. Rd1
{[%clk 0:02:18.8]} 14... Qc7 {[%clk 0:01:52.8]} 15. Rdd6 {[%clk 0:01:58.5]}
15... Bf5 {[%clk 0:01:47.4]} 16. Nb5 {[%clk 0:01:49.3]} 16... Qb8 {[%clk
0:01:14.9]} 17. Bh6 {[%clk 0:01:16.8]} 17... Nc8 {[%clk 0:01:02.2]} 18. Bxg7
{[%clk 0:00:59.9]} 18... Kxg7 {[%clk 0:01:00.6]} 19. Nxf7 {[%clk 0:00:15.9]}
19... Nxd6 {[%clk 0:00:46.1]} 20. Nbxd6 {[%clk 0:00:09.2]} 20... Qxd6 {[%clk
0:00:37.4]} 21. Rxd6 {[%clk 0:00:06.5]} 21... Rxf7 {[%clk 0:00:37.1]} 22. Qxc4
{[%clk 0:00:06.6]} 22... b6 {[%clk 0:00:35]} 23. Qc3+ {[%clk 0:00:06.7]} 23...
Kg8 {[%clk 0:00:33.5]} 24. Rf6 {[%clk 0:00:06.8]} 24... Re7 {[%clk 0:00:31.8]}
25. h3 {[%clk 0:00:06.1]} 25... Rae8 {[%clk 0:00:31.6]} 26. Qg3 {[%clk
0:00:05.6]} 26... Bxc2 {[%clk 0:00:29.5]} 27. b4 {[%clk 0:00:05]} 27... cxb4
{[%clk 0:00:27.6]} 28. h4 {[%clk 0:00:05.1]} 28... a5 {[%clk 0:00:26.5]} 29. h5
{[%clk 0:00:05.3]} 29... Re6 {[%clk 0:00:22.5]} 30. Rxe6 {[%clk 0:00:05]} 30...
Rxe6 {[%clk 0:00:21.9]} 31. h6 {[%clk 0:00:05.9]} 31... Bf5 {[%clk 0:00:20.2]}
32. Qc7 {[%clk 0:00:05.9]} 32... a4 {[%clk 0:00:18.5]} 33. Qg7# {[%clk
0:00:05.6]} 1-0

[Event "Early-Titled-Tuesday-Blitz-May-28-2024"]
[Site "Chess.com"]
[Date "2024.05.28"]
[Round "6"]
[White "lluiss"]
[Black "jup1978"]
[Result "0-1"]
[WhiteElo "2174"]
[BlackElo "2419"]
[TimeControl "180+1"]
[EndTime "9:07:07 PDT"]
[Termination "jup1978 won on time"]

1. Nf3 {[%clk 0:03:00.9]} 1... d5 {[%clk 0:02:54.7]} 2. d4 {[%clk 0:03:00.6]}
2... e6 {[%clk 0:02:55.6]} 3. c4 {[%clk 0:02:59.9]} 3... Nf6 {[%clk 0:02:54.7]}
4. cxd5 {[%clk 0:02:59.4]} 4... exd5 {[%clk 0:02:54.1]} 5. Nc3 {[%clk
0:02:59.3]} 5... a6 {[%clk 0:02:53]} 6. Bg5 {[%clk 0:02:51.9]} 6... Be6 {[%clk
0:02:52.6]} 7. e3 {[%clk 0:02:51.3]} 7... Nbd7 {[%clk 0:02:53.1]} 8. Bd3 {[%clk
0:02:45.3]} 8... Bd6 {[%clk 0:02:53.5]} 9. O-O {[%clk 0:02:37.9]} 9... h6 {[%clk
0:02:51.5]} 10. Bh4 {[%clk 0:02:36.2]} 10... O-O {[%clk 0:02:51.4]} 11. Bg3
{[%clk 0:02:15.9]} 11... Bxg3 {[%clk 0:02:47.6]} 12. hxg3 {[%clk 0:02:15.5]}
12... c5 {[%clk 0:02:48.3]} 13. dxc5 {[%clk 0:02:14.6]} 13... Nxc5 {[%clk
0:02:49.2]} 14. Nd4 {[%clk 0:02:12.6]} 14... Re8 {[%clk 0:02:38.3]} 15. Be2
{[%clk 0:02:06.3]} 15... Rc8 {[%clk 0:02:32.7]} 16. Bf3 {[%clk 0:01:54.2]} 16...
Qd7 {[%clk 0:02:31.8]} 17. Qd2 {[%clk 0:01:46.8]} 17... Bg4 {[%clk 0:02:27.2]}
18. Bxg4 {[%clk 0:01:43]} 18... Qxg4 {[%clk 0:02:28.1]} 19. Qe2 {[%clk
0:01:07.9]} 19... Qg6 {[%clk 0:02:16.8]} 20. Qf3 {[%clk 0:01:06.2]} 20... Nce4
{[%clk 0:02:14.2]} 21. Nxe4 {[%clk 0:01:00.7]} 21... dxe4 {[%clk 0:02:13.9]} 22.
Qf5 {[%clk 0:00:58]} 22... Qxf5 {[%clk 0:02:11.8]} 23. Nxf5 {[%clk 0:00:57.5]}
23... Rc2 {[%clk 0:02:11.8]} 24. Rab1 {[%clk 0:00:38.1]} 24... Ng4 {[%clk
0:02:05]} 25. Nd4 {[%clk 0:00:37.5]} 25... Rd2 {[%clk 0:02:04.4]} 26. b3 {[%clk
0:00:36.8]} 26... Rc8 {[%clk 0:02:03.2]} 27. a4 {[%clk 0:00:35.2]} 27... h5
{[%clk 0:01:58.7]} 28. Rbd1 {[%clk 0:00:34.9]} 28... Ra2 {[%clk 0:01:48.5]} 29.
Ra1 {[%clk 0:00:34.9]} 29... Rb2 {[%clk 0:01:47.3]} 30. Rab1 {[%clk 0:00:35.1]}
30... Ra2 {[%clk 0:01:47.6]} 31. Ra1 {[%clk 0:00:35.3]} 31... Rxa1 {[%clk
0:01:48.1]} 32. Rxa1 {[%clk 0:00:34.4]} 32... g6 {[%clk 0:01:48.5]} 33. Kf1
{[%clk 0:00:32]} 33... Rc3 {[%clk 0:01:48.3]} 34. Ke2 {[%clk 0:00:30.5]} 34...
Kf8 {[%clk 0:01:46.8]} 35. Ra2 {[%clk 0:00:30.1]} 35... Ke7 {[%clk 0:01:46.2]}
36. Rc2 {[%clk 0:00:29.7]} 36... Rxc2+ {[%clk 0:01:46.4]} 37. Nxc2 {[%clk
0:00:30.5]} 37... Ne5 {[%clk 0:01:42.1]} 38. f3 {[%clk 0:00:24.7]} 38... Nd3
{[%clk 0:01:40.4]} 39. Nd4 {[%clk 0:00:19.9]} 39... Nc5 {[%clk 0:01:37.9]} 40.
Kd2 {[%clk 0:00:15.1]} 40... Kd6 {[%clk 0:01:35.8]} 41. Kc3 {[%clk 0:00:07.9]}
41... Kd5 {[%clk 0:01:32.7]} 42. a5 {[%clk 0:00:06.3]} 42... Nd3 {[%clk
0:01:26.8]} 43. Kd2 {[%clk 0:00:02.2]} 43... Ne5 {[%clk 0:01:22.9]} 44. b4
{[%clk 0:00:01.2]} 44... Nd3 {[%clk 0:01:18.9]} 45. b5 {[%clk 0:00:01]} 45...
Nc5 {[%clk 0:01:15.7]} 46. bxa6 {[%clk 0:00:01]} 46... bxa6 {[%clk 0:01:16.6]}
47. f4 {[%clk 0:00:01]} 47... Kc4 {[%clk 0:01:14.4]} 48. Ke2 {[%clk 0:00:01]}
48... Nb3 {[%clk 0:01:09.9]} 49. Nc6 {[%clk 0:00:01]} 49... Kc5 {[%clk
0:01:05.5]} 50. Ne5 {[%clk 0:00:01]} 50... Nxa5 {[%clk 0:01:03.7]} 51. Nxf7
{[%clk 0:00:01]} 51... Nc6 {[%clk 0:01:02.9]} 52. Ne5 {[%clk 0:00:01]} 52...
Nxe5 {[%clk 0:01:02.5]} 0-1

[Event "Early-Titled-Tuesday-Blitz-May-28-2024"]
[Site "Chess.com"]
[Date "2024.05.28"]
[Round "6"]
[White "martinmena"]
[Black "IMRosen"]
[Result "0-1"]
[WhiteElo "2143"]
[BlackElo "2730"]
[TimeControl "180+1"]
[EndTime "9:07:08 PDT"]
[Termination "IMRosen won by resignation"]

1. c4 {[%clk 0:03:00.9]} 1... e5 {[%clk 0:02:55.1]} 2. Nc3 {[%clk 0:02:57.8]}
2... Nc6 {[%clk 0:02:55.6]} 3. g3 {[%clk 0:02:57.1]} 3... f5 {[%clk 0:02:54.6]}
4. Bg2 {[%clk 0:02:56.6]} 4... Nf6 {[%clk 0:02:55.4]} 5. e3 {[%clk 0:02:54.2]}
5... d5 {[%clk 0:02:55.3]} 6. cxd5 {[%clk 0:02:52.1]} 6... Nb4 {[%clk
0:02:55.6]} 7. d4 {[%clk 0:02:52.7]} 7... e4 {[%clk 0:02:55.8]} 8. Bf1 {[%clk
0:02:44.8]} 8... Nbxd5 {[%clk 0:02:53.9]} 9. Bc4 {[%clk 0:02:42.3]} 9... c6
{[%clk 0:02:49.6]} 10. Nge2 {[%clk 0:02:38.6]} 10... Be6 {[%clk 0:02:43.6]} 11.
Nxd5 {[%clk 0:02:36.3]} 11... cxd5 {[%clk 0:02:25.9]} 12. Bb5+ {[%clk 0:02:34]}
12... Kf7 {[%clk 0:02:26.6]} 13. O-O {[%clk 0:02:20.5]} 13... a6 {[%clk
0:02:23.2]} 14. Ba4 {[%clk 0:02:19.6]} 14... g5 {[%clk 0:02:20.7]} 15. f3 {[%clk
0:02:16.4]} 15... Kg6 {[%clk 0:02:10.3]} 16. fxe4 {[%clk 0:02:14.6]} 16... fxe4
{[%clk 0:01:54.5]} 17. Bc2 {[%clk 0:01:51.8]} 17... Bd6 {[%clk 0:01:53.8]} 18.
a4 {[%clk 0:01:46.6]} 18... Rc8 {[%clk 0:01:53.9]} 19. b3 {[%clk 0:01:45.7]}
19... Qe7 {[%clk 0:01:51]} 20. Ra2 {[%clk 0:01:37.9]} 20... Bg4 {[%clk
0:01:47.1]} 21. Qe1 {[%clk 0:01:31.4]} 21... Kg7 {[%clk 0:01:41.8]} 22. Nc3
{[%clk 0:01:20.4]} 22... Qe6 {[%clk 0:01:29.5]} 23. Ba3 {[%clk 0:01:15.2]} 23...
Bb8 {[%clk 0:01:28.3]} 24. Bd1 {[%clk 0:01:06.8]} 24... Bh3 {[%clk 0:01:28.3]}
25. Rff2 {[%clk 0:00:51.3]} 25... h5 {[%clk 0:01:28.6]} 26. Be2 {[%clk
0:00:48.5]} 26... Rc6 {[%clk 0:01:23.3]} 27. Bf1 {[%clk 0:00:46.1]} 27... h4
{[%clk 0:01:00.6]} 28. Rac2 {[%clk 0:00:27.5]} 28... hxg3 {[%clk 0:00:56.7]} 29.
hxg3 {[%clk 0:00:26.9]} 29... Bxg3 {[%clk 0:00:57.1]} 30. Qe2 {[%clk 0:00:07.8]}
30... Bxf2+ {[%clk 0:00:49.8]} 31. Qxf2 {[%clk 0:00:07]} 31... Qg4+ {[%clk
0:00:49.8]} 32. Bg2 {[%clk 0:00:03.6]} 32... Rhc8 {[%clk 0:00:31]} 33. Kh2
{[%clk 0:00:01.7]} 33... Bxg2 {[%clk 0:00:29.7]} 34. Qxg2 {[%clk 0:00:01.8]}
34... Qh4+ {[%clk 0:00:26.1]} 35. Kg1 {[%clk 0:00:01.4]} 35... Rxc3 {[%clk
0:00:26.7]} 36. Rxc3 {[%clk 0:00:01]} 36... Rxc3 {[%clk 0:00:27.6]} 0-1

[Event "Early-Titled-Tuesday-Blitz-May-28-2024"]
[Site "Chess.com"]
[Date "2024.05.28"]
[Round "6"]
[White "mbojan"]
[Black "GianmarcoVaR"]
[Result "1-0"]
[WhiteElo "2912"]
[BlackElo "2724"]
[TimeControl "180+1"]
[EndTime "9:07:10 PDT"]
[Termination "mbojan won by checkmate"]

1. Nf3 {[%clk 0:03:00.9]} 1... Nf6 {[%clk 0:02:57.5]} 2. g3 {[%clk 0:03:01]}
2... g6 {[%clk 0:02:53.8]} 3. Bg2 {[%clk 0:03:01.1]} 3... Bg7 {[%clk 0:02:54.5]}
4. O-O {[%clk 0:03:01.4]} 4... O-O {[%clk 0:02:54.6]} 5. d4 {[%clk 0:03:01.9]}
5... d6 {[%clk 0:02:54.3]} 6. c4 {[%clk 0:03:01.6]} 6... Nbd7 {[%clk 0:02:53.5]}
7. Nc3 {[%clk 0:03:01.3]} 7... e5 {[%clk 0:02:54]} 8. e4 {[%clk 0:02:56.7]} 8...
exd4 {[%clk 0:02:51.2]} 9. Nxd4 {[%clk 0:02:57.6]} 9... Re8 {[%clk 0:02:51.8]}
10. Re1 {[%clk 0:02:56.7]} 10... Nc5 {[%clk 0:02:51]} 11. h3 {[%clk 0:02:54.8]}
11... h6 {[%clk 0:02:49.7]} 12. b3 {[%clk 0:02:44.1]} 12... Nfd7 {[%clk
0:02:44.6]} 13. Be3 {[%clk 0:02:40.3]} 13... Ne5 {[%clk 0:02:41]} 14. Qc2 {[%clk
0:02:34.8]} 14... h5 {[%clk 0:02:27.7]} 15. Rad1 {[%clk 0:02:32.9]} 15... Bd7
{[%clk 0:02:04.7]} 16. Nd5 {[%clk 0:02:23.3]} 16... Ne6 {[%clk 0:01:50.5]} 17.
f4 {[%clk 0:02:02.1]} 17... Nc6 {[%clk 0:00:40.7]} 18. Nf3 {[%clk 0:02:01.4]}
18... Nc5 {[%clk 0:00:40.2]} 19. Bxc5 {[%clk 0:02:00.5]} 19... dxc5 {[%clk
0:00:40.7]} 20. e5 {[%clk 0:02:00.8]} 20... Qc8 {[%clk 0:00:40.2]} 21. Kh2
{[%clk 0:02:00.4]} 21... Bf5 {[%clk 0:00:31.6]} 22. Qf2 {[%clk 0:02:00.5]} 22...
Nb4 {[%clk 0:00:31.2]} 23. Qxc5 {[%clk 0:01:57.4]} 23... Bf8 {[%clk 0:00:25.7]}
24. Qf2 {[%clk 0:01:55.6]} 24... Kh8 {[%clk 0:00:21.1]} 25. Re2 {[%clk
0:01:43.1]} 25... c6 {[%clk 0:00:20.9]} 26. Nf6 {[%clk 0:01:38.4]} 26... Rd8
{[%clk 0:00:20.5]} 27. Red2 {[%clk 0:01:36.9]} 27... Qc7 {[%clk 0:00:16.2]} 28.
g4 {[%clk 0:01:34.1]} 28... Bc2 {[%clk 0:00:09.5]} 29. gxh5 {[%clk 0:01:20.6]}
29... Bxd1 {[%clk 0:00:05.1]} 30. hxg6 {[%clk 0:01:21.2]} 30... Bh6 {[%clk
0:00:02.1]} 31. Qh4 {[%clk 0:00:19.5]} 31... Kg7 {[%clk 0:00:01.9]} 32. Nh5+
{[%clk 0:00:20.2]} 32... Kh8 {[%clk 0:00:01.4]} 33. g7+ {[%clk 0:00:20]} 33...
Kg8 {[%clk 0:00:01.2]} 34. Qg4 {[%clk 0:00:17.2]} 34... Rxd2 {[%clk 0:00:01]}
35. Nf6# {[%clk 0:00:17]} 1-0